bitfinex/quotes_SOLUSD_20250831
["timestamp","ask_amount","ask_price","bid_price","bid_amount"]
[1756646157723,5.63465947,203.06,203.03,0.03]
[1756646158442,0.71,203.05,203.03,0.03]
[1756646158749,4.92465947,203.06,203.03,0.03]
[1756646159125,26.0,203.06,203.04,0.7]
[1756646159330,26.0,203.06,203.03,0.03]
[1756646160168,0.01043519,203.1,203.04,0.7]
[1756646162933,0.72043519,203.1,203.03,0.03]
[1756646163250,0.72043519,203.1,203.04,0.72]
[1756646163640,0.01043519,203.1,203.04,0.72]
[1756646164829,0.72043519,203.1,203.04,0.72]
[1756646166558,26.0,203.08,203.04,0.72]
[1756646166854,26.0,203.08,203.05,0.72]
[1756646168856,30.92425615,203.08,203.05,0.72]
[1756646170064,26.0,203.08,203.03,0.03]
[1756646170245,26.0,203.08,203.06,0.72]
[1756646171060,26.0,203.09,203.06,0.72]
[1756646171237,26.0,203.09,203.07,0.72]
[1756646172158,26.0,203.09,203.08,0.72]
[1756646172360,26.0,203.09,203.03,9.88072721]
[1756646172562,26.0,203.09,203.06,0.72]
[1756646172733,26.0,203.09,203.07,0.72]
[1756646173134,26.0,203.09,203.05,0.72]
[1756646173349,26.0,203.09,203.06,0.72]
[1756646174739,26.0,203.09,203.04,4.92506551]
[1756646174940,26.0,203.09,203.05,0.72]
[1756646175757,26.0,203.08,203.03,4.95535055]
[1756646175943,0.71,203.08,203.03,0.03]
[1756646176264,26.0,203.06,203.04,0.03]
[1756646176458,30.92489534,203.05,203.04,0.03]
[1756646176666,31.63489534,203.05,203.04,0.03]
[1756646178457,4.92489534,203.05,203.04,0.03]
[1756646179240,26.0,203.07,203.04,0.03]
[1756646179440,0.01043519,203.1,203.04,0.75]
[1756646179742,0.01043519,203.1,203.04,2.723506]
[1756646180046,0.01043519,203.1,203.04,7.64841286]
[1756646180259,0.01043519,203.1,203.05,0.72]
[1756646180850,26.01043519,203.1,203.05,0.72]
[1756646183175,0.01043519,203.1,203.06,4.92465281]
[1756646183357,0.01043519,203.1,203.07,0.72]
[1756646183863,0.01043519,203.1,203.08,0.72]
[1756646184567,0.01043519,203.1,203.06,0.72]
[1756646185461,0.01043519,203.1,203.06,5.64462605]
[1756646185775,0.01043519,203.1,203.07,0.72]
[1756646186490,0.01043519,203.1,203.07,5.644627]
[1756646186646,0.01043519,203.1,203.08,0.72]
[1756646187048,0.01043519,203.1,203.08,5.644627]
[1756646187281,0.06,203.13,203.08,5.644627]
[1756646187578,0.06,203.13,203.09,5.64392535]
[1756646187878,0.06,203.13,203.09,0.72]
[1756646188056,0.06,203.13,203.1,0.72]
[1756646189462,0.06,203.13,203.08,14.797642]
[1756646189463,0.06,203.13,203.11,0.72]
[1756646190359,0.06,203.13,203.08,14.797642]
[1756646190671,0.71,203.12,203.07,0.72]
[1756646190859,0.71,203.11,203.07,0.72]
[1756646191375,0.71,203.11,203.05,0.72]
[1756646191861,4.92368291,203.1,203.05,0.72]
[1756646192263,5.63348157,203.11,203.06,0.69]
[1756646192455,4.92348157,203.11,203.04,0.03]
[1756646192662,0.72,203.1,203.04,0.03]
[1756646192876,26.0,203.08,203.04,0.03]
[1756646193082,0.72,203.07,203.04,0.03]
[1756646193446,0.72,203.06,203.04,0.03]
[1756646193763,1.97409,203.09,203.05,0.69]
[1756646193965,26.0,203.09,203.05,0.69]
[1756646194877,26.0,203.1,203.05,0.69]
[1756646195065,0.72,203.09,203.07,0.03]
[1756646195463,4.92320722,203.12,203.07,0.72]
[1756646195647,5.64320722,203.12,203.07,0.72]
[1756646195972,0.72,203.11,203.07,0.03]
[1756646196580,0.72,203.1,203.07,0.03]
[1756646196876,26.0,203.12,203.08,0.69]
[1756646197049,26.0,203.12,203.07,0.03]
[1756646197252,26.0,203.11,203.08,0.69]
[1756646197459,26.0,203.11,203.07,0.03]
[1756646197695,26.0,203.11,203.09,0.69]
[1756646198767,0.06,203.13,203.07,4.95440504]
[1756646198953,0.06,203.13,203.1,0.69]
[1756646199349,26.06,203.13,203.08,0.69]
[1756646199567,26.06,203.13,203.09,0.69]
[1756646199758,26.06,203.13,203.07,0.03]
[1756646199972,26.06,203.13,203.1,0.69]
[1756646200375,5.70302223,203.13,203.07,5.674405]
[1756646200586,5.70302223,203.13,203.07,0.72]
[1756646200757,26.0,203.1,203.07,0.03]
[1756646201366,26.0,203.1,203.07,0.72]
[1756646201864,0.72,203.09,203.07,0.03]
[1756646203164,30.92378047,203.1,203.07,0.03]
[1756646203165,0.72,203.08,203.07,0.03]
[1756646203488,5.64416781,203.08,203.07,0.03]
[1756646204383,26.0,203.1,203.07,0.03]
[1756646204566,26.72,203.1,203.07,0.03]
[1756646205489,31.64377668,203.1,203.07,0.03]
[1756646207085,26.0,203.1,203.08,0.69]
[1756646207289,0.06,203.13,203.09,0.69]
[1756646207791,26.06,203.13,203.1,0.69]
[1756646208288,0.06,203.13,203.07,4.95439129]
[1756646208488,0.06,203.13,203.11,0.69]
[1756646208667,26.06,203.13,203.08,0.69]
[1756646208986,26.06,203.13,203.09,0.69]
[1756646209179,26.06,203.13,203.07,4.95439129]
[1756646209360,26.06,203.13,203.1,0.69]
[1756646209772,5.70302694,203.13,203.07,0.72]
[1756646210586,0.06,203.13,203.08,4.92416781]
[1756646210801,0.06,203.13,203.09,0.69]
[1756646210962,0.06,203.13,203.1,13.59559401]
[1756646211165,0.06,203.13,203.11,0.69]
[1756646211865,0.06,203.13,203.12,4.9231981]
[1756646212279,0.06,203.13,203.12,5.6131981]
[1756646213084,0.06,203.13,203.12,0.69]
[1756646213283,0.06,203.13,203.1,161.27]
[1756646213489,0.06,203.13,203.11,0.69]
[1756646213874,0.06,203.13,203.12,0.69]
[1756646215404,0.06,203.13,203.12,14.28559401]
[1756646215698,0.06,203.15,203.13,13.59559401]
[1756646215878,0.06,203.15,203.14,19.01057873]
[1756646216190,0.06,203.15,203.14,19.70057873]
[1756646217270,0.03402002,203.18,203.15,13.59559401]
[1756646217479,0.03402002,203.18,203.17,13.59559401]
[1756646218101,0.03402002,203.18,203.17,14.28559401]
[1756646218610,0.03402002,203.18,203.17,14.77779266]
[1756646218903,0.03402002,203.18,203.17,136.77779266]
[1756646219120,0.03402002,203.18,203.17,141.20758052]
[1756646220682,0.03402002,203.18,203.17,146.15863273]
[1756646221196,0.03402002,203.18,203.17,148.13058273]
[1756646221811,0.06,203.23,203.19,39.59559401]
[1756646221984,0.06,203.23,203.19,40.08774421]
[1756646222194,0.06,203.23,203.19,40.78774421]
[1756646222775,0.06,203.23,203.19,79.34774421]
[1756646223205,0.06,203.23,203.2,13.59559401]
[1756646223509,0.06,203.25,203.22,13.59559401]
[1756646223803,0.06,203.25,203.23,39.05205333]
[1756646223977,0.06,203.25,203.23,41.72332233]
[1756646224183,0.06,203.25,203.24,14.29559401]
[1756646224584,0.06,203.27,203.24,14.29559401]
[1756646224790,0.06,203.27,203.25,1.19200492]
[1756646225094,0.06,203.28,203.26,78.15559401]
[1756646225304,0.06,203.28,203.27,18.51515912]
[1756646225507,0.06,203.28,203.27,19.70711563]
[1756646227002,1e-08,203.29,203.28,13.59559401]
[1756646227200,1e-08,203.29,203.28,14.29559401]
[1756646227403,0.01137025,203.3,203.29,44.51467512]
[1756646227733,0.01137025,203.3,203.29,83.75467512]
[1756646228007,0.01137025,203.3,203.29,85.72516712]
[1756646229188,0.01137025,203.3,203.29,21.18516712]
[1756646229391,0.01137025,203.3,203.29,59.02516712]
[1756646229990,0.01137025,203.3,203.29,59.72516712]
[1756646230207,0.01137025,203.3,203.29,21.18516712]
[1756646230410,0.01137025,203.3,203.29,59.72516712]
[1756646230886,0.01137025,203.3,203.29,181.72516712]
[1756646231912,0.01137025,203.3,203.29,59.72516712]
[1756646233592,0.01137025,203.3,203.29,60.21707523]
[1756646234426,0.01137025,203.3,203.29,20.48516712]
[1756646234719,0.01137025,203.3,203.29,52.11559401]
[1756646234897,0.01137025,203.3,203.29,57.03467512]
[1756646235084,0.01137025,203.3,203.29,57.73467512]
[1756646235592,0.01137025,203.3,203.29,59.70536212]
[1756646238611,0.01137025,203.3,203.29,59.00536212]
[1756646239223,0.01137025,203.3,203.29,20.48536212]
[1756646239425,0.01137025,203.3,203.29,57.03467512]
[1756646239722,0.01137025,203.3,203.29,57.73467512]
[1756646239923,0.01137025,203.3,203.29,58.22658323]
[1756646240214,0.01137025,203.3,203.29,18.51467512]
[1756646240419,0.01137025,203.3,203.29,57.03467512]
[1756646240617,0.01137025,203.3,203.29,57.73467512]
[1756646240926,0.01137025,203.3,203.29,179.73467512]
[1756646241920,0.06,203.32,203.3,13.59559401]
[1756646242123,0.06,203.32,203.3,14.29559401]
[1756646242934,0.06,203.32,203.3,19.21443316]
[1756646243314,1e-08,203.31,203.3,19.70631707]
[1756646243621,0.06,203.33,203.3,19.70631707]
[1756646243821,0.06,203.33,203.32,13.59559401]
[1756646244324,0.06,203.35,203.34,39.59559401]
[1756646244527,0.06,203.39,203.35,13.59559401]
[1756646244708,1e-08,203.37,203.36,52.11559401]
[1756646244908,1e-08,203.39,203.38,39.59559401]
[1756646245112,1e-08,203.39,203.38,52.11559401]
[1756646245420,1e-08,203.39,203.38,52.81559401]
[1756646246008,0.2,203.46,203.41,26.0]
[1756646246215,0.2,203.46,203.41,78.11559401]
[1756646246418,0.2,203.46,203.41,78.81559401]
[1756646247002,0.2,203.46,203.41,83.73177315]
[1756646247311,0.2,203.46,203.41,205.73177315]
[1756646248522,0.69,203.45,203.41,166.51177315]
[1756646248722,0.2,203.46,203.41,166.51177315]
[1756646248723,0.2,203.46,203.41,205.71177315]
[1756646249426,0.89,203.46,203.41,205.01177315]
[1756646250024,0.89,203.46,203.41,83.01177315]
[1756646250421,0.2,203.46,203.41,87.92554715]
[1756646250721,0.2,203.46,203.45,39.59559401]
[1756646251027,0.2,203.46,203.45,83.01080659]
[1756646251408,0.2,203.46,203.45,87.92311459]
[1756646251604,0.2,203.46,203.45,88.62311459]
[1756646251934,0.03925651,203.46,203.45,93.57965442]
[1756646253226,0.03925651,203.46,203.45,176.37965442]
[1756646253436,0.03925651,203.46,203.45,214.87965442]
[1756646253637,0.03925651,203.46,203.45,92.87965442]
[1756646253804,0.03925651,203.46,203.45,93.59965442]
[1756646254433,0.03925651,203.46,203.45,92.87965442]
[1756646255513,0.74925651,203.46,203.45,13.59559401]
[1756646255830,0.03925651,203.46,203.45,57.13080659]
[1756646256332,0.74925651,203.46,203.45,52.21559401]
[1756646257226,0.03925651,203.46,203.45,57.13080659]
[1756646258232,0.03925651,203.46,203.45,62.11933044]
[1756646258405,0.03925651,203.46,203.45,62.27933044]
[1756646258807,0.03925651,203.46,203.45,62.99933044]
[1756646259645,0.00772929,203.46,203.45,62.99933044]
[1756646260607,0.00772929,203.46,203.45,24.21933044]
[1756646260812,0.00772929,203.46,203.45,62.95933044]
[1756646261751,0.00772929,203.46,203.45,24.21933044]
[1756646261931,0.01335881,203.47,203.46,13.59559401]
[1756646262252,0.01335881,203.47,203.46,14.80709111]
[1756646262456,0.71,203.58,203.5,13.59559401]
[1756646262675,0.71,203.58,203.51,38.76]
[1756646263560,0.71,203.59,203.53,13.59559401]
[1756646263741,0.71,203.59,203.55,13.59559401]
[1756646264053,0.71,203.59,203.56,38.76]
[1756646264256,0.71,203.58,203.56,38.76]
[1756646264959,0.71,203.57,203.56,52.35559401]
[1756646265635,0.71,203.57,203.56,57.2681505]
[1756646265836,0.2,203.63,203.56,57.2681505]
[1756646266037,0.71,203.62,203.56,57.2681505]
[1756646266257,0.71,203.61,203.56,57.2681505]
[1756646266435,0.71,203.6,203.56,57.2681505]
[1756646266638,0.71,203.59,203.58,4.91207387]
[1756646266841,0.71,203.59,203.55,18.50618801]
[1756646267039,0.71,203.58,203.55,13.59559401]
[1756646267254,0.71,203.57,203.56,38.72]
[1756646267559,0.2,203.63,203.56,38.72]
[1756646267743,0.71,203.59,203.56,38.72]
[1756646267944,0.71,203.58,203.56,38.72]
[1756646268254,0.71,203.57,203.56,38.72]
[1756646268445,0.71,203.6,203.56,38.72]
[1756646268643,0.71,203.59,203.56,38.72]
[1756646269159,0.06,203.57,203.56,38.72]
[1756646269541,0.77,203.57,203.56,38.72]
[1756646269956,0.06,203.57,203.56,38.72]
[1756646270849,0.77,203.57,203.55,13.59559401]
[1756646271064,0.71,203.56,203.55,13.59559401]
[1756646271363,26.71,203.56,203.52,14.763416]
[1756646271559,0.71,203.55,203.52,14.763416]
[1756646271761,0.71,203.54,203.53,38.7]
[1756646271960,0.71,203.54,203.46,4.91493244]
[1756646272268,0.71,203.53,203.47,52.29559401]
[1756646272861,0.71,203.53,203.47,57.2102238]
[1756646273159,0.71,203.53,203.47,18.5102238]
[1756646273361,0.71,203.53,203.48,38.7]
[1756646274438,0.71,203.52,203.48,43.61442797]
[1756646274638,0.06,203.57,203.5,13.59559401]
[1756646274839,0.06,203.57,203.52,13.59559401]
[1756646275057,0.06,203.57,203.53,0.72]
[1756646275262,0.06,203.57,203.54,38.68]
[1756646276569,0.06,203.57,203.54,43.59300849]
[1756646276747,0.06,203.57,203.54,44.31300849]
[1756646277149,0.06,203.57,203.54,39.4]
[1756646277346,0.06,203.57,203.54,44.31301386]
[1756646277662,0.06,203.57,203.55,38.74]
[1756646279871,0.71,203.56,203.5,0.72]
[1756646280163,0.71,203.56,203.48,19.21742801]
[1756646280369,0.71,203.55,203.49,13.59559401]
[1756646280666,0.71,203.54,203.49,38.7]
[1756646280964,0.71,203.53,203.5,38.72]
[1756646281359,0.71,203.52,203.5,38.72]
[1756646282261,0.66,203.51,203.5,38.72]
[1756646282463,0.66,203.51,203.5,38.7]
[1756646283172,0.66,203.51,203.39,26.0]
[1756646283173,0.66,203.51,203.41,13.62559401]
[1756646283359,0.66,203.5,203.42,38.7]
[1756646283559,0.66,203.49,203.42,38.7]
[1756646283764,5.57461893,203.48,203.42,38.7]
[1756646285778,4.914971,203.46,203.41,0.03]
[1756646285951,4.914971,203.46,203.41,38.71]
[1756646286269,26.0,203.43,203.41,0.03]
[1756646286771,0.66,203.42,203.41,0.03]
[1756646287784,5.57593746,203.42,203.41,0.03]
[1756646288667,26.0,203.45,203.41,0.74]
[1756646288872,0.66,203.48,203.41,0.74]
[1756646289075,20.34954145,203.51,203.42,38.66]
[1756646289255,5.57376345,203.51,203.43,0.71]
[1756646289455,26.0,203.48,203.43,0.71]
[1756646289955,4.9142464,203.49,203.43,0.71]
[1756646290374,0.66,203.5,203.43,0.71]
[1756646290575,5.57413604,203.5,203.43,0.71]
[1756646291358,0.66,203.5,203.43,0.71]
[1756646291557,5.57328059,203.53,203.43,5.62565129]
[1756646291873,30.9142464,203.49,203.44,38.68]
[1756646292075,0.66,203.48,203.44,38.68]
[1756646292285,31.5742464,203.49,203.44,38.68]
[1756646292794,0.66,203.48,203.44,38.68]
[1756646293361,0.66,203.47,203.44,38.68]
[1756646294075,4.91487401,203.47,203.44,38.68]
[1756646294378,5.57487401,203.47,203.44,38.68]
[1756646294583,4.91487401,203.47,203.44,38.68]
[1756646294759,5.57487401,203.47,203.44,38.68]
[1756646294961,5.57487401,203.47,203.41,0.74]
[1756646295377,5.57487401,203.47,203.41,39.44]
[1756646295774,0.66,203.46,203.41,0.03]
[1756646295971,26.0,203.44,203.41,0.03]
[1756646296171,26.66,203.44,203.41,0.03]
[1756646297581,6.88481603,203.48,203.42,0.71]
[1756646297793,31.57451803,203.48,203.42,0.71]
[1756646298989,26.0,203.48,203.42,5.62585198]
[1756646299184,26.0,203.48,203.43,0.71]
[1756646299574,30.91460716,203.48,203.43,0.71]
[1756646299766,30.91460716,203.48,203.44,0.71]
[1756646300869,26.0,203.48,203.44,0.71]
[1756646301286,4.91427786,203.49,203.45,0.71]
[1756646301784,5.57360107,203.52,203.46,0.71]
[1756646303076,5.57360107,203.52,203.43,38.64]
[1756646303077,5.57360107,203.52,203.43,43.55553026]
[1756646303284,5.57360107,203.52,203.44,0.71]
[1756646303979,4.91360107,203.52,203.44,0.71]
[1756646304173,26.0,203.52,203.45,4.91521258]
[1756646304373,5.57322023,203.54,203.46,0.71]
[1756646304572,26.0,203.51,203.43,0.71]
[1756646304793,0.66,203.5,203.43,38.6]
[1756646304995,0.66,203.49,203.43,38.6]
[1756646305586,26.66,203.51,203.44,0.71]
[1756646306174,26.0,203.48,203.41,0.74]
[1756646306388,26.0,203.47,203.41,0.03]
[1756646306604,26.66,203.47,203.41,0.03]
[1756646307707,1.970492,203.46,203.41,0.03]
[1756646308074,0.66,203.45,203.41,0.03]
[1756646308288,26.0,203.42,203.41,0.03]
[1756646308799,26.66,203.42,203.41,0.03]
[1756646310316,26.0,203.42,203.41,0.03]
[1756646310592,26.0,203.45,203.41,0.03]
[1756646310970,0.66,203.45,203.41,0.03]
[1756646311681,26.68,203.47,203.41,0.75]
[1756646311885,26.0,203.46,203.41,0.75]
[1756646312188,26.0,203.46,203.41,0.03]
[1756646312393,4.91521258,203.45,203.41,0.03]
[1756646312571,4.91521258,203.45,203.41,0.75]
[1756646312772,26.68,203.46,203.41,0.75]
[1756646313597,26.0,203.46,203.41,0.75]
[1756646313903,26.0,203.45,203.42,0.72]
[1756646314999,0.68,203.5,203.43,0.72]
[1756646315196,26.0,203.49,203.43,0.72]
[1756646315380,4.976409,203.52,203.43,0.72]
[1756646315580,0.74,203.52,203.43,0.72]
[1756646315802,26.0,203.5,203.43,0.72]
[1756646316015,0.68,203.49,203.43,0.72]
[1756646316380,0.68,203.49,203.43,5.63568823]
[1756646318005,26.0,203.49,203.44,0.72]
[1756646318178,26.0,203.49,203.43,4.91568823]
[1756646318384,26.0,203.49,203.44,5.63527693]
[1756646318686,0.68,203.51,203.45,0.72]
[1756646318893,5.59384355,203.51,203.45,0.72]
[1756646320491,26.0,203.5,203.45,5.63516027]
[1756646320693,0.06,203.52,203.46,0.72]
[1756646321390,0.06,203.52,203.46,122.72]
[1756646321600,0.06,203.52,203.47,14.31559401]
[1756646322013,0.06,203.52,203.48,0.72]
[1756646322704,0.06,203.52,203.49,4.9142464]
[1756646322906,0.06,203.52,203.5,0.72]
[1756646323303,0.06,203.52,203.51,0.72]
[1756646324201,0.06,203.52,203.47,13.59559401]
[1756646324405,0.06,203.52,203.49,0.72]
[1756646324590,0.06,203.52,203.5,0.72]
[1756646324989,0.06,203.52,203.51,0.72]
[1756646326025,0.01122708,203.52,203.51,0.72]
[1756646326188,0.01122708,203.52,203.51,14.31559401]
[1756646326910,0.01122708,203.52,203.51,19.22935746]
[1756646329613,0.01122708,203.52,203.51,14.31559401]
[1756646329788,0.01122708,203.52,203.51,38.52]
[1756646330116,0.01122708,203.52,203.48,39.24]
[1756646330488,0.01122708,203.52,203.49,0.72]
[1756646332195,0.01122708,203.52,203.49,4.91417786]
[1756646332394,0.01122708,203.52,203.5,0.72]
[1756646332798,0.01122708,203.52,203.51,0.72]
[1756646333002,0.01122708,203.52,203.51,5.63376345]
[1756646335316,0.01122708,203.52,203.51,0.72]
[1756646335515,0.01122708,203.52,203.51,39.24]
[1756646335713,0.01122708,203.52,203.51,0.72]
[1756646335911,0.01122708,203.52,203.51,39.24]
[1756646336408,0.01122708,203.52,203.51,44.15376345]
[1756646339395,0.01122708,203.52,203.51,0.72]
[1756646339595,0.01122708,203.52,203.51,39.22]
[1756646340329,0.69122708,203.52,203.5,38.5]
[1756646340613,0.01122708,203.52,203.51,0.72]
[1756646341191,0.01122708,203.52,203.45,26.0]
[1756646341400,0.01122708,203.52,203.48,0.72]
[1756646341699,0.01122708,203.52,203.49,43.4142464]
[1756646341896,0.01122708,203.52,203.5,0.03]
[1756646342215,0.01122708,203.52,203.51,0.7]
[1756646342424,0.01122708,203.52,203.51,14.29559401]
[1756646343820,0.01122708,203.52,203.51,19.20935746]
[1756646344004,0.06,203.55,203.51,19.20935746]
[1756646344205,0.06,203.55,203.53,13.59559401]
[1756646344727,0.06,203.55,203.54,14.29559401]
[1756646346025,0.06,203.55,203.54,38.5]
[1756646347103,0.06,203.55,203.53,38.5]
[1756646350502,0.66,203.54,203.52,38.5]
[1756646350720,0.66,203.53,203.52,38.5]
[1756646351229,0.66,203.53,203.5,38.53]
[1756646351732,26.0,203.54,203.5,38.53]
[1756646352037,0.66,203.52,203.5,0.03]
[1756646352208,4.91376345,203.51,203.5,0.03]
[1756646352538,26.0,203.51,203.5,0.03]
[1756646353416,0.66,203.51,203.5,0.03]
[1756646354333,26.66,203.51,203.5,0.03]
[1756646354535,26.0,203.51,203.5,0.03]
[1756646354920,0.66,203.53,203.5,0.03]
[1756646355433,0.66,203.52,203.5,0.03]
[1756646355821,30.91319852,203.54,203.5,0.03]
[1756646356021,0.66,203.51,203.5,0.03]
[1756646357535,4.91330237,203.53,203.5,0.03]
[1756646357847,0.66,203.52,203.5,0.03]
[1756646359313,0.66,203.51,203.5,0.03]
[1756646359517,26.66,203.51,203.5,0.03]
[1756646360919,31.57376345,203.51,203.5,0.03]
[1756646361238,45.16935746,203.51,203.5,0.03]
[1756646362335,57.45376608,203.51,203.47,0.03]
[1756646363726,26.0,203.48,203.47,0.03]
[1756646364148,26.66,203.48,203.47,0.03]
[1756646365115,31.57448791,203.48,203.47,0.03]
[1756646368826,30.91448791,203.48,203.47,0.03]
[1756646369223,31.57448791,203.48,203.47,0.03]
[1756646369849,30.91427728,203.49,203.47,0.03]
[1756646370149,0.66,203.48,203.47,0.03]
[1756646370359,26.66,203.48,203.47,0.03]
[1756646370553,26.0,203.48,203.47,0.03]
[1756646370939,43.41427728,203.49,203.47,0.03]
[1756646371450,4.91427728,203.49,203.47,0.03]
[1756646371653,30.91448791,203.48,203.47,0.03]
[1756646376642,31.58448791,203.48,203.47,0.03]
[1756646377545,26.0,203.48,203.47,0.03]
[1756646377735,26.0,203.48,203.47,0.73]
[1756646379349,30.91448791,203.48,203.47,0.03]
[1756646379731,30.91448791,203.48,203.47,0.73]
[1756646379932,0.06,203.5,203.47,0.73]
[1756646380238,26.0,203.49,203.47,0.73]
[1756646380450,26.0,203.49,203.48,0.7]
[1756646381128,0.06,203.5,203.48,0.7]
[1756646381334,26.06,203.5,203.49,0.7]
[1756646381630,30.97400491,203.5,203.49,0.7]
[1756646381855,30.97400491,203.5,203.47,0.73]
[1756646382040,30.97400491,203.5,203.48,0.7]
[1756646383440,30.97400491,203.5,203.47,0.03]
[1756646383646,0.67,203.49,203.47,0.03]
[1756646383962,39.17,203.49,203.47,0.03]
[1756646384342,0.67,203.48,203.47,0.03]
[1756646384757,38.5,203.49,203.47,0.03]
[1756646385163,5.58448791,203.48,203.47,0.03]
[1756646385546,4.91448791,203.48,203.47,0.03]
[1756646385748,4.97422055,203.5,203.47,0.73]
[1756646385945,26.0,203.48,203.47,0.03]
[1756646386560,26.0,203.48,203.47,0.73]
[1756646386940,0.06,203.5,203.47,0.03]
[1756646387135,26.0,203.48,203.47,0.03]
[1756646387638,26.0,203.49,203.47,0.73]
[1756646389438,26.0,203.49,203.47,0.03]
[1756646389658,26.0,203.49,203.48,0.7]
[1756646392169,26.0,203.49,203.47,0.73]
[1756646392356,26.0,203.49,203.47,0.03]
[1756646392554,0.06,203.5,203.48,0.7]
[1756646394154,0.06,203.5,203.49,4.9142464]
[1756646394546,0.06,203.5,203.49,5.6142464]
[1756646394779,0.06,203.5,203.49,0.7]
[1756646395274,0.01213901,203.5,203.49,0.7]
[1756646398574,0.68213901,203.5,203.47,0.03]
[1756646399665,0.67,203.49,203.47,0.03]
[1756646400259,0.01213901,203.5,203.47,0.03]
[1756646400466,26.67,203.48,203.47,0.03]
[1756646401474,5.58448791,203.48,203.47,0.03]
[1756646401676,31.57638469,203.5,203.47,0.03]
[1756646401977,26.01213901,203.5,203.47,0.74]
[1756646402163,26.01213901,203.5,203.48,0.71]
[1756646402574,30.92615071,203.5,203.47,0.03]
[1756646402897,30.92615071,203.5,203.47,0.74]
[1756646403174,0.01213901,203.5,203.48,0.71]
[1756646403967,40.449715,203.54,203.48,0.71]
[1756646403968,0.06,203.57,203.5,39.59559401]
[1756646404171,0.06,203.57,203.51,0.71]
[1756646404690,0.06,203.57,203.53,13.59559401]
[1756646404979,0.06,203.57,203.54,4.38439764]
[1756646405566,0.06,203.57,203.54,9.29743684]
[1756646406466,0.01121613,203.55,203.54,9.29743684]
[1756646407984,0.01121613,203.55,203.54,9.28996853]
[1756646408183,0.01121613,203.55,203.54,4.37692853]
[1756646409176,0.01121613,203.55,203.54,9.28996773]
[1756646410086,0.01121613,203.55,203.54,3.66692853]
[1756646410410,0.01121613,203.55,203.54,4.37692853]
[1756646411090,0.01121613,203.55,203.54,3.66692853]
[1756646411898,0.01121613,203.55,203.54,4.37692853]
[1756646414106,0.01121613,203.55,203.54,9.28996773]
[1756646414306,0.01121613,203.55,203.54,22.88556174]
[1756646414607,0.01121613,203.55,203.54,24.85401674]
[1756646416594,0.06,203.57,203.54,24.85401674]
[1756646416792,0.06,203.57,203.56,13.59559401]
[1756646417020,0.06,203.57,203.56,55.72252254]
[1756646417228,0.06,203.57,203.56,56.43252254]
[1756646417951,0.06,203.57,203.56,63.31324403]
[1756646418430,0.06,203.6,203.56,63.80449967]
[1756646418598,0.06,203.6,203.56,59.42757114]
[1756646418804,0.06,203.6,203.57,43.95466567]
[1756646419210,0.06,203.6,203.57,165.95466567]
[1756646419806,0.06,203.6,203.59,44.50742661]
[1756646420010,0.06,203.6,203.59,48.15649827]
[1756646420213,0.06,203.6,203.59,48.86649827]